fUSD/lending_fUSD_20251006
["ID","MTS","AMOUNT","RATE_DAILY","PERIOD"]
[389654299,1759768257798,-264.94364492,0.0001995,15]
[389654300,1759768257810,-2853.70942,0.0001995,15]
[389654301,1759768257828,-150.0,0.00017534,2]
[389654302,1759768257838,-8747.69328507,0.0001995,15]
[389654303,1759768257847,-1340.67630932,0.0001995,15]
[389654304,1759768257857,-151.0,0.0001995,2]
[389654305,1759768257867,-151.0,0.0001995,2]
[389654306,1759768257876,-151.0,0.0001995,2]
[389654307,1759768257885,-158.800682,0.0001995,2]
[389654308,1759768257895,-158.800682,0.0001995,2]
[389654309,1759768257904,-890.434819,0.0001995,2]
[389654310,1759768257913,-890.434819,0.0001995,2]
[389654311,1759768257923,-890.434819,0.0001995,2]
[389654312,1759768257932,-890.434819,0.0001995,2]
[389654313,1759768257941,-151.0,0.0001995,2]
[389654314,1759768257950,-151.0,0.0001995,2]
[389654315,1759768257959,-438.0,0.00019964,2]
[389654316,1759768257969,-514.0,0.0001997,2]
[389654317,1759768257979,-150.0,0.00019973,2]
[389654318,1759768257988,-500.41,0.00019977,2]
[389654319,1759768257998,-822.41,0.0001998,2]
[389654320,1759768258009,-500.0,0.0001998,2]
[389654321,1759768258019,-500.0,0.0001998,2]
[389654322,1759768258029,-300.0,0.00019999,2]
[389654323,1759768258039,-304.63351049,0.00019999,2]
[389654324,1759768258049,-500.0,0.00019999,2]
[389654325,1759768258058,-260.56532135,0.00019999,2]
[389654326,1759768258067,-555.22318425,0.00019999,2]
[389654327,1759768258076,-350.14414661,0.00019999,2]
[389654328,1759768258086,-34388.73504538,0.0002,2]
[389654329,1759768258095,-500.0,0.0002,2]
[389654330,1759768258105,-2786.0,0.0002,2]
[389654331,1759768258115,-500.0,0.0002,2]
[389654332,1759768258125,-1249.0,0.0002,2]
[389654333,1759768258134,-500.0,0.0002,2]
[389654334,1759768258144,-470.0,0.0002,2]
[389654335,1759768258153,-665.0,0.0002,2]
[389654336,1759768258162,-150.0,0.0002,4]
[389654337,1759768258173,-2825.57852325,0.0002,2]
[389654338,1759768258182,-8691.1196288,0.0002,2]
[389654339,1759768258192,-6000.0,0.0002,2]
[389654340,1759768258202,-7203.0,0.0002,2]
[389654341,1759768258212,-202.67,0.0002,2]
[389654342,1759768258224,-163.0,0.0002,3]
[389654343,1759768258237,-150.0,0.0002,2]
[389654344,1759768258247,-3527.34227513,0.0002,2]
[389654345,1759768258255,-150.0,0.0002,2]
[389654346,1759768258268,-150.0,0.0002,2]
[389654347,1759768258278,-150.0,0.0002,2]
[389654348,1759768258287,-150.0,0.0002,2]
[389654349,1759768258296,-150.0,0.0002,2]
[389654350,1759768258305,-150.0,0.0002,2]
[389654351,1759768258314,-2000.0,0.0002,2]
[389654352,1759768258323,-150.0,0.0002,2]
[389654353,1759768258332,-5671.67317312,0.0002,2]
[389654354,1759768258342,-150.0,0.0002,2]
[389654355,1759768258351,-150.0,0.0002,2]
[389654356,1759768258363,-150.0,0.0002,2]
[389654357,1759768258374,-150.0,0.0002,2]
[389654358,1759768258383,-150.0,0.0002,2]
[389654359,1759768258393,-150.0,0.0002,2]
[389654360,1759768258403,-150.0,0.0002,2]
[389654361,1759768258412,-150.0,0.0002,2]
[389654362,1759768258421,-150.0,0.0002,2]
[389654363,1759768258431,-150.0,0.0002,2]
[389654364,1759768258443,-150.0,0.0002,2]
[389654365,1759768258453,-150.0,0.0002,2]
[389654366,1759768258461,-150.0,0.0002,2]
[389654367,1759768258470,-150.0,0.0002,2]
[389654368,1759768258479,-150.0,0.0002,2]
[389654369,1759768258489,-150.0,0.0002,2]
[389654370,1759768258498,-150.0,0.0002,2]
[389654371,1759768258508,-151.0,0.0002,2]
[389654372,1759768258517,-150.0,0.0002,2]
[389654373,1759768258527,-150.0,0.0002,2]
[389654374,1759768258536,-150.0,0.0002,2]
[389654375,1759768258545,-150.0,0.0002,2]
[389654376,1759768258554,-150.0,0.0002,2]
[389654377,1759768258563,-150.0,0.0002,2]
[389654378,1759768258572,-150.0,0.0002,2]
[389654379,1759768258581,-393.0,0.0002,2]
[389654380,1759768258590,-150.0,0.0002,2]
[389654381,1759768258599,-150.0,0.0002,2]
[389654382,1759768258609,-150.0,0.0002,2]
[389654383,1759768258618,-150.0,0.0002,2]
[389654384,1759768258627,-150.0,0.0002,2]
[389654385,1759768258635,-150.0,0.0002,2]
[389654386,1759768258645,-150.0,0.0002,2]
[389654387,1759768258653,-150.0,0.0002,2]
[389654388,1759768258662,-150.0,0.0002,2]
[389654389,1759768258671,-150.0,0.0002,2]
[389654390,1759768258680,-150.0,0.0002,2]
[389654391,1759768258689,-150.0,0.0002,2]
[389654392,1759768258698,-150.0,0.0002,2]
[389654393,1759768258707,-150.0,0.0002,2]
[389654394,1759768258716,-150.0,0.0002,2]
[389654395,1759768258726,-150.0,0.0002,2]
[389654396,1759768258737,-150.0,0.0002,2]
[389654397,1759768258747,-150.0,0.0002,2]
[389654398,1759768258756,-150.0,0.0002,2]
[389654399,1759768258765,-150.0,0.0002,2]
[389654400,1759768258774,-150.0,0.0002,2]
[389654401,1759768258783,-150.0,0.0002,2]
[389654402,1759768258792,-150.0,0.0002,2]
[389654403,1759768258801,-150.0,0.0002,2]
[389654404,1759768258811,-150.0,0.0002,2]
[389654405,1759768258820,-150.0,0.0002,2]
[389654406,1759768258829,-150.0,0.0002,2]
[389654407,1759768258839,-150.0,0.0002,2]
[389654408,1759768258848,-150.0,0.0002,2]
[389654409,1759768258857,-150.0,0.0002,2]
[389654410,1759768258866,-150.0,0.0002,2]
[389654411,1759768258876,-150.0,0.0002,2]
[389654412,1759768258885,-150.0,0.0002,2]
[389654413,1759768258894,-150.0,0.0002,2]
[389654414,1759768258904,-150.0,0.0002,2]
[389654415,1759768258913,-150.0,0.0002,2]
[389654416,1759768258923,-150.0,0.0002,2]
[389654417,1759768258932,-150.0,0.0002,2]
[389654418,1759768258942,-150.0,0.0002,2]
[389654419,1759768258952,-150.0,0.0002,2]
[389654420,1759768258962,-139633.35206742,0.0002,2]
[389654421,1759768258977,-684.19880205,0.0002,2]
[389654422,1759768288564,600.0,9.21e-05,2]
[389654423,1759768290020,600.0,9.611e-05,2]
[389654424,1759768291641,600.0,0.00010013,2]
[389654425,1759768293255,600.0,0.00010414,2]
[389654426,1759768295086,600.0,0.00010815,2]
[389654427,1759768296656,600.0,0.00011217,2]
[389654428,1759768298261,600.0,0.00011618,2]
[389654429,1759768332555,155.0,0.00012014,2]
[389654430,1759768345123,-250.10488,0.00012019,2]
[389654435,1759768352339,-250.0,0.00012019,2]
[389654436,1759768359820,-80.38495698,0.00012019,2]
[389654437,1759768359847,-19.51016302,0.00012019,2]
[389654438,1759768366645,-300.0,0.00012421,2]
[389654439,1759768374014,-200.0,0.00012421,2]
[389654440,1759768380895,-100.0,0.00012421,2]
[389654441,1759768380935,-0.10488,0.00012822,2]
[389654442,1759768387962,-300.0,0.00012822,2]
[389654443,1759768396924,-299.89512,0.00012822,2]
[389654444,1759768396955,-250.0,0.00013221,2]
[389654445,1759768396982,-57.17678004,0.00013223,2]
[389654446,1759768397033,-542.82321996,0.00013223,2]
[389654447,1759768411009,-153.986,0.00013624,2]
[389654449,1759768420603,600.0,9.228e-05,2]
[389654450,1759768422204,600.0,9.631e-05,2]
[389654451,1759768423845,513.3461415,0.00010033,2]
[389654452,1759768425035,-19.404971,0.00014104,2]
[389654453,1759768425067,-175.595029,0.00014104,2]
[389654454,1759768432138,-152.921196,0.00014104,2]
[389654455,1759768432160,-147.078804,0.00014104,2]
[389654456,1759768439224,-46.353384,0.00014104,2]
[389654457,1759768439246,-253.646616,0.00014104,2]
[389654458,1759768446216,-208.45130786,0.00014104,2]
[389654459,1759768453287,-150.83224398,0.00014104,3]
[389654483,1759769432011,-195.0,0.00014065,2]
[389654484,1759769432020,-500.0,0.00014065,2]
[389654485,1759769432031,-155.0,0.00014104,3]
[389654486,1759769432041,-195.0,0.00014507,2]
[389654487,1759769432050,-332.88557393,0.00014507,2]
[389654488,1759769432059,-363.48729618,0.00014556,2]
[389654489,1759769432068,-961.36,0.00014996,2]
[389654490,1759769432077,-160.0,0.00015,2]
[389654491,1759769432087,-1200.0,0.00015448,2]
[389654492,1759769432096,-1200.0,0.00015448,2]
[389654493,1759769432105,-195.0,0.00015449,2]
[389654494,1759769432114,-500.0,0.00015449,2]
[389654495,1759769432123,-300.87465994,0.00015449,2]
[389654496,1759769432132,-250.0,0.00015449,2]
[389654497,1759769432141,-195.0,0.00015449,2]
[389654498,1759769432151,-370.68887098,0.0001555,2]
[389654499,1759769432160,-3099.21590791,0.00016,2]
[389654500,1759769432171,-544.02,0.00016,2]
[389654501,1759769432187,-801.82409209,0.00016,2]
[389654502,1759769432196,-450.0,0.00016079,2]
[389654503,1759769432205,-7965.41053268,0.0001608,2]
[389654504,1759769432214,-621.78829552,0.0001608,2]
[389654505,1759769432223,-154.25226641,0.0001608,2]
[389654506,1759769432233,-231.28369723,0.0001608,2]
[389654507,1759769432242,-8078.47,0.00016116,2]
[389654508,1759769432251,-150.99,0.00016116,2]
[389654509,1759769432260,-2968.12,0.00016116,2]
[389654510,1759769432270,-4611.85,0.00016116,2]
[389654511,1759769432279,-999.99,0.00016116,2]
[389654512,1759769432289,-5963.89,0.00016116,2]
[389654513,1759769432298,-779.41034529,0.00016116,2]
[389654514,1759769432309,-400.30965471,0.00016116,2]
[389654515,1759769432319,-150.99,0.00016116,2]
[389654516,1759769432329,-7702.41,0.00016116,2]
[389654517,1759769432338,-1581.31,0.00016116,2]
[389654518,1759769432347,-7115.75576905,0.00016135,2]
[389654519,1759769432363,-1144.37495334,0.00016135,2]
[389654520,1759769432372,-3644.92922786,0.0001619,2]
[389654521,1759769432391,-445.93310196,0.0001619,2]
[389654536,1759769437876,-4474.89322929,0.0001619,2]
[389654537,1759769437885,-150.0,0.000164,120]
[389654538,1759769437895,-366.92286491,0.00016427,2]
[389654539,1759769437904,-500.0,0.00016427,2]
[389654540,1759769437914,-500.0,0.00016427,2]
[389654541,1759769437923,-500.0,0.00016427,2]
[389654542,1759769437933,-500.0,0.00016427,2]
[389654543,1759769437942,-500.0,0.00016427,2]
[389654544,1759769437953,-398.81532473,0.00016427,2]
[389654545,1759769437962,-567.72883956,0.00016427,2]
[389654546,1759769437972,-151.0,0.00016427,2]
[389654547,1759769437982,-151.0,0.00016427,2]
[389654548,1759769437991,-151.0,0.00016427,2]
[389654549,1759769438000,-235.11971456,0.00016427,2]
[389654550,1759769438010,-200.0,0.00016427,2]
[389654551,1759769438020,-200.0,0.00016427,2]
[389654552,1759769438030,-200.0,0.00016427,2]
[389654553,1759769438039,-151.0,0.00016427,2]
[389654554,1759769438049,-203.05725991,0.00016427,2]
[389654555,1759769438059,-200.0,0.00016427,2]
[389654556,1759769438068,-151.0,0.00016427,2]
[389654557,1759769438078,-322.6107,0.00016427,2]
[389654558,1759769438088,-200.0,0.00016427,2]
[389654559,1759769438098,-151.0,0.00016427,2]
[389654560,1759769438111,-151.0,0.00016427,2]
[389654561,1759769438122,-200.0,0.00016427,2]
[389654562,1759769438132,-151.0,0.00016427,2]
[389654563,1759769438142,-1500.0,0.00016427,2]
[389654564,1759769438151,-151.0,0.00016427,2]
[389654565,1759769438161,-200.0,0.00016427,2]
[389654566,1759769438171,-151.0,0.00016427,2]
[389654567,1759769438181,-151.0,0.00016427,2]
[389654568,1759769438190,-200.0,0.00016427,2]
[389654569,1759769438200,-151.0,0.00016427,2]
[389654570,1759769438210,-151.0,0.00016427,2]
[389654571,1759769438219,-200.0,0.00016427,2]
[389654572,1759769438228,-151.0,0.00016427,2]
[389654573,1759769438237,-151.0,0.00016427,2]
[389654574,1759769438247,-200.0,0.00016427,2]
[389654575,1759769438257,-500.0,0.00016427,2]
[389654576,1759769438266,-151.0,0.00016427,2]
[389654577,1759769438275,-200.0,0.00016427,2]
[389654578,1759769438285,-151.0,0.00016427,2]
[389654579,1759769438294,-200.0,0.00016427,2]
[389654580,1759769438303,-1000.0,0.00016427,2]
[389654581,1759769438313,-151.0,0.00016427,2]
[389654582,1759769438322,-200.0,0.00016427,2]
[389654583,1759769438332,-1000.0,0.00016427,2]
[389654609,1759769438569,-200.0,0.00016427,2]
[389654610,1759769438578,-151.0,0.00016427,2]
[389654611,1759769438588,-1000.0,0.00016427,2]
[389654612,1759769438597,-151.0,0.00016427,2]
[389654613,1759769438606,-1000.0,0.00016427,2]
[389654614,1759769438616,-245.0,0.00016427,2]
[389654615,1759769438625,-1000.0,0.00016427,2]
[389654616,1759769438634,-1000.0,0.00016427,2]
[389654617,1759769438643,-1000.0,0.00016427,2]
[389654618,1759769438652,-1000.0,0.00016427,2]
[389654619,1759769438662,-1019.53502291,0.00016427,2]
[389654620,1759769438672,-151.0,0.00016427,2]
[389654621,1759769438686,-190.32,0.00016428,2]
[389654622,1759769438696,-5000.0,0.00016437,2]
[389654623,1759769438705,-2999.99,0.00016437,2]
[389654624,1759769438715,-5000.0,0.00016437,2]
[389654625,1759769438727,-2999.99,0.00016437,2]
[389654626,1759769438736,-5000.02,0.00016437,2]
[389654627,1759769438745,-321.607456,0.00016438,2]
[389654628,1759769438756,-713.728054,0.00016438,2]
[389654629,1759769438766,-505.620673,0.00016438,2]
[389654630,1759769438776,-500.0,0.00016438,2]
[389654631,1759769438785,-153.35087314,0.00016438,2]
[389654632,1759769438795,-305.61,0.00016438,2]
[389654633,1759769438804,-1000.0,0.00016438,2]
[389654634,1759769438813,-1000.0,0.00016438,2]
[389654635,1759769438822,-1000.0,0.00016438,2]
[389654636,1759769438832,-1000.0,0.00016438,2]
[389654637,1759769438840,-1000.0,0.00016438,2]
[389654638,1759769438849,-1000.0,0.00016438,2]
[389654639,1759769438859,-1000.0,0.00016438,2]
[389654640,1759769438868,-1000.0,0.00016438,2]
[389654641,1759769438877,-500.0,0.00016527,2]
[389654642,1759769438886,-273.19379831,0.00016527,2]
[389654643,1759769438896,-500.0,0.00016527,2]
[389654644,1759769438905,-452.921196,0.00016527,2]
[389654645,1759769438914,-500.0,0.00016527,2]
[389654646,1759769438924,-190.32,0.00016702,2]
[389654647,1759769438933,-559.15340671,0.00016711,2]
[389654648,1759769438942,-500.0,0.00016711,2]
[389654649,1759769438951,-500.0,0.00016711,2]
[389654650,1759769438960,-500.0,0.00016711,2]
[389654651,1759769438970,-163.02,0.00016712,2]
[389654652,1759769438979,-200.0,0.00016775,2]
[389654653,1759769438988,-4117.0,0.00016775,2]
[389654654,1759769438998,-2543.0,0.00016775,2]
[389654655,1759769439007,-500.0,0.00016856,2]
[389654656,1759769439017,-511.85755868,0.00016856,2]
[389654657,1759769439026,-500.0,0.00016856,2]
[389654658,1759769439035,-500.0,0.00016922,2]
[389654659,1759769439045,-500.0,0.00016922,2]
[389654660,1759769439054,-500.0,0.00016933,2]
[389654661,1759769439067,-2000.0,0.00016933,2]
[389654662,1759769439076,-190.32,0.00016976,2]
[389654663,1759769439086,-1680.0,0.00016985,2]
[389654664,1759769439095,-500.0,0.00016986,2]
[389654665,1759769439104,-63455.62,0.00016992,2]
[389654666,1759769439114,-250.0,0.00017,2]
[389654667,1759769439124,-159.70394716,0.00017025,2]
[389654668,1759769439133,-2000.0,0.000173,2]
[389654669,1759769439142,-500.0,0.00017404,2]
[389654670,1759769439152,-239.84119403,0.00017449,2]
[389654671,1759769439161,-321.607456,0.00017516,2]
[389654672,1759769439170,-713.728054,0.00017516,2]
[389654673,1759769439180,-505.620673,0.00017516,2]
[389654674,1759769439189,-334.5472959,0.00017796,2]
[389654675,1759769439198,-321.607456,0.00017808,4]
[389654676,1759769439208,-321.607456,0.00017808,4]
[389654677,1759769439217,-321.607456,0.00017808,4]
[389654678,1759769439227,-321.607456,0.00017808,4]
[389654679,1759769439236,-321.607456,0.00017808,4]
[389654680,1759769439245,-713.728054,0.00017808,4]
[389654681,1759769439254,-713.728054,0.00017808,4]
[389654682,1759769439263,-713.728054,0.00017808,4]
[389654683,1759769439272,-713.728054,0.00017808,4]
[389654684,1759769439282,-713.728054,0.00017808,4]
[389654685,1759769439292,-505.620673,0.00017808,4]
[389654686,1759769439302,-505.620673,0.00017808,4]
[389654687,1759769439312,-505.620673,0.00017808,4]
[389654688,1759769439321,-505.620673,0.00017808,4]
[389654689,1759769439331,-505.620673,0.00017808,4]
[389654690,1759769439340,-3659.41,0.00017842,2]
[389654691,1759769439349,-190.85909881,0.00018,2]
[389654692,1759769439358,-1000.0,0.00018082,2]
[389654693,1759769439367,-190.85909881,0.000182,2]
[389654694,1759769439377,-168.0,0.00018264,2]
[389654695,1759769439386,-500.0,0.00018329,2]
[389654696,1759769439396,-166.0,0.0001836,120]
[389654697,1759769439406,-190.85909881,0.000184,2]
[389654698,1759769439415,-1896.553,0.00018473,2]
[389654699,1759769439424,-168.0,0.00018488,2]
[389654700,1759769439434,-190.85909881,0.000185,2]
[389654701,1759769439443,-168.0,0.00018504,2]
[389654702,1759769439452,-321.607456,0.00018594,2]
[389654703,1759769439462,-713.728054,0.00018594,2]
[389654704,1759769439471,-505.620673,0.00018594,2]
[389654705,1759769439480,-334.5,0.00018625,7]
[389654706,1759769439490,-720.0,0.00018675,2]
[389654707,1759769439500,-1102.92444309,0.00018691,2]
[389654708,1759769439509,-200.0,0.00018691,2]
[389654709,1759769439519,-190.85909881,0.000187,2]
[389654710,1759769439528,-1000.0,0.0001876,2]
[389654711,1759769439538,-1025.7,0.00018763,7]
[389654712,1759769439547,-1025.7,0.00018763,7]
[389654713,1759769439556,-1025.7,0.00018763,7]
[389654714,1759769439566,-1025.7,0.00018763,7]
[389654715,1759769439576,-214.2,0.000188,2]
[389654716,1759769439585,-150.0,0.000188,2]
[389654717,1759769439596,-168.0,0.00018813,2]
[389654718,1759769439606,-248.71531821,0.00018818,2]
[389654719,1759769439615,-168.0,0.00018898,2]
[389654720,1759769439625,-169.97,0.00018923,2]
[389654721,1759769439634,-1727.39,0.00018934,2]
[389654722,1759769439643,-474.0,0.00018934,2]
[389654723,1759769439653,-155.0,0.00018992,3]
[389654724,1759769439662,-300.0,0.00019,2]
[389654726,1759769439672,-1025.7,0.00019037,7]
[389654727,1759769439684,-1025.7,0.00019037,7]
[389654728,1759769439693,-346.92554585,0.00019165,2]
[389654729,1759769439702,-500.0,0.00019178,2]
[389654730,1759769439711,-151.0,0.00019178,2]
[389654731,1759769439721,-208.26433655,0.00019178,2]
[389654732,1759769439731,-166.0,0.00019278,120]
[389654733,1759769439741,-1025.7,0.00019311,7]
[389654734,1759769439750,-1025.7,0.00019311,7]
[389654735,1759769439762,-151.0,0.00019352,2]
[389654736,1759769439771,-1000.0,0.00019438,2]
[389654737,1759769439781,-2500.0,0.00019521,3]
[389654738,1759769439792,-2253.0,0.00019534,2]
[389654739,1759769439802,-1025.7,0.00019585,7]
[389654740,1759769439812,-1025.7,0.00019585,7]
[389654741,1759769439823,-321.607456,0.00019672,2]
[389654743,1759769439833,-713.728054,0.00019672,2]
[389654744,1759769439846,-505.620673,0.00019672,2]
[389654745,1759769439855,-151.0,0.00019676,2]
[389654746,1759769439865,-229.62400356,0.00019693,2]
[389654747,1759769439876,-600.0,0.000197,7]
[389654748,1759769439885,-156.587,0.00019726,2]
[389654749,1759769439894,-500.89338006,0.00019734,2]
[389654750,1759769439903,-2000.0,0.00019734,2]
[389654751,1759769439913,-2253.0,0.00019735,2]
[389654752,1759769439925,-150.0,0.00019775,2]
[389654753,1759769439934,-4117.0,0.00019775,2]
[389654754,1759769439944,-2543.0,0.00019775,2]
[389654755,1759769439953,-150.0,0.00019775,4]
[389654756,1759769439963,-150.0,0.00019775,4]
[389654757,1759769439972,-150.0,0.00019775,4]
[389654758,1759769439982,-150.0,0.00019775,4]
[389654759,1759769439991,-150.0,0.00019775,4]
[389654760,1759769440000,-196.25261683,0.00019775,4]
[389654761,1759769440009,-150.0,0.00019775,4]
[389654762,1759769440018,-150.0,0.00019775,4]
[389654763,1759769440028,-9592.16535036,0.00019793,2]
[389654764,1759769440037,-158.30377981,0.00019793,2]
[389654765,1759769440047,-370.68887098,0.000198,7]
[389654766,1759769440056,-1200.0,0.000198,7]
[389654767,1759769440065,-5000.0,0.000198,2]
[389654768,1759769440074,-4711.4591984,0.00019816,2]
[389654769,1759769440083,-11631.8613766,0.00019816,2]
[389654770,1759769440093,-1025.7,0.00019859,7]
[389654771,1759769440102,-1025.7,0.00019859,7]
[389654772,1759769440111,-643.29760659,0.00019868,2]
[389654773,1759769440120,-147974.9984786,0.00019869,2]
[389654774,1759769440130,-474.0,0.00019893,2]
[389654775,1759769440139,-1000.0,0.000199,2]
[389654776,1759769440148,-7992.7084,0.000199,2]
[389654777,1759769440157,-177.89923271,0.000199,2]
[389654778,1759769440166,-250000.0,0.000199,2]
[389654779,1759769440175,-1800.0,0.000199,7]
[389654780,1759769440183,-807.3170078,0.000199,2]
[389654781,1759769440192,-2253.0,0.00019937,2]
[389654782,1759769440202,-2698.27242028,0.00019947,6]
[389654783,1759769440211,-500.0,0.00019973,2]
[389654784,1759769440220,-500.0,0.00019973,2]
[389654785,1759769440229,-505.87411357,0.00019973,2]
[389654786,1759769440239,-500.0,0.00019973,2]
[389654787,1759769440248,-500.0,0.00019973,2]
[389654788,1759769440257,-500.0,0.00019973,2]
[389654790,1759769440266,-500.0,0.00019973,2]
[389654792,1759769440276,-500.0,0.00019973,2]
[389654794,1759769440284,-544.84923843,0.00019973,2]
[389654796,1759769440294,-500.0,0.00019973,2]
[389654797,1759769440303,-150.0,0.0001998,2]
[389654798,1759769440313,-331.31768907,0.0001999,2]
[389654800,1759769440324,-150.5,0.0001999,2]
[389654801,1759769440333,-150.5,0.0001999,2]
[389654802,1759769440342,-150.5,0.0001999,2]
[389654803,1759769440351,-150.5,0.0001999,2]
[389654804,1759769440360,-150.5,0.0001999,2]
[389654805,1759769440370,-150.5,0.0001999,2]
[389654806,1759769440380,-150.5,0.0001999,2]
[389654807,1759769440389,-150.5,0.0001999,2]
[389654808,1759769440398,-150.5,0.0001999,2]
[389654810,1759769440407,-150.5,0.0001999,2]
[389654812,1759769440416,-150.5,0.0001999,2]
[389654814,1759769440425,-150.5,0.0001999,2]
[389654816,1759769440434,-150.5,0.0001999,2]
[389654818,1759769440443,-150.5,0.0001999,2]
[389654819,1759769440452,-150.5,0.0001999,2]
[389654820,1759769440461,-371.6581581,0.00019995,2]
[389654821,1759769440470,-300.0,0.00019999,2]
[389654822,1759769440479,-1186.5753389,0.00019999,5]
[389654823,1759769440488,-1186.5753389,0.00019999,5]
[389654824,1759769440498,-310.31199686,0.00019999,2]
[389654825,1759769440507,-254.78382541,0.00019999,2]
[389654826,1759769440517,-603.74365181,0.00019999,2]
[389654827,1759769440526,-500.0,0.00019999,2]
[389654828,1759769440536,-148309.19386937,0.0002,2]
[389654829,1759769440550,-58321.49917223,0.0002,30]
[389654830,1759769440560,-10770.35913497,0.0002,2]
[389654831,1759769440569,-1512.71231231,0.0002,2]
[389654832,1759769440579,-1577.8230881,0.0002,30]
[389654833,1759769440588,-25253.34008431,0.0002,2]
[389654834,1759769440597,-4637.26894458,0.0002,2]
[389654835,1759769440607,-310091.28855146,0.0002,5]
[389654836,1759769440617,-8300.0,0.0002,4]
[389654837,1759769440626,-3950.0,0.0002,2]
[389654838,1759769440635,-171.68261878,0.0002,20]
[389654839,1759769440644,-7102.8849269,0.0002,14]
[389654840,1759769440653,-1277.32405598,0.0002,2]
[389654841,1759769440662,-7276.87010901,0.0002,2]
[389654842,1759769440671,-1031.15494989,0.0002,2]
[389654843,1759769440684,-1000.0,0.0002,90]
[389654844,1759769440694,-90828.54638326,0.0002,2]
[389654845,1759769440703,-3600.0,0.0002,3]
[389654846,1759769440715,-8176.0,0.0002,2]
[389654847,1759769440727,-10000.0,0.0002,5]
[389654848,1759769440736,-10148.80968807,0.0002,2]
[389654849,1759769440745,-3647.0,0.0002,2]
[389654850,1759769440757,-30000.0,0.0002,2]
[389654851,1759769440767,-159821.41664121,0.0002,2]
[389654852,1759769440776,-59106.0,0.0002,2]
[389654853,1759769440785,-351.43187224,0.0002,30]
[389654854,1759769440794,-164188.64984659,0.0002,7]
[389654855,1759769440803,-2141.0,0.0002,5]
[389654856,1759769440813,-520.61769461,0.0002,7]
[389654857,1759769440822,-56417.34682778,0.0002,2]
[389654858,1759769440832,-3705.09626752,0.0002,5]
[389654859,1759769440842,-2500.0,0.0002,10]
[389654860,1759769440851,-9250.15013804,0.0002,2]
[389654861,1759769440860,-8484.88225556,0.0002,2]
[389654862,1759769440869,-2110.27771779,0.0002,3]
[389654863,1759769440878,-1069.7008,0.0002,2]
[389654864,1759769440888,-2000.0,0.0002,2]
[389654865,1759769440898,-410.97481048,0.0002,3]
[389654866,1759769440908,-2000.0,0.0002,2]
[389654867,1759769440917,-490.02166723,0.0002,10]
[389654868,1759769440926,-2000.0,0.0002,2]
[389654869,1759769440936,-2000.0,0.0002,2]
[389654870,1759769440945,-15000.0,0.0002,2]
[389654871,1759769440954,-800.0,0.0002,120]
[389654872,1759769440965,-2000.0,0.0002,2]
[389654873,1759769440974,-2000.0,0.0002,2]
[389654874,1759769440984,-5370.79570256,0.0002,2]
[389654875,1759769440994,-1333.78668515,0.0002,2]
[389654876,1759769441003,-2000.0,0.0002,2]
[389654877,1759769441012,-170.93625,0.0002,2]